Cogmind - Beta 12 @@@ ROGUE MODE // 2023.04.24 @ 11:37:09 Player: arcadio rl Result: Self-destructed Performance ------------- Evolutions (2) 1000 Regions Visited (4) 800 Robots Destroyed (71) 355 Value Destroyed (1755) 1755 Prototype IDs (1) 20 Alien Tech Used (0) 0 Bonus (188) 188 TOTAL SCORE: 4118 Bonus ------- High Alert Combat Kills 188 Cogmind --------- Core Integrity 406/550 Matter 300/300 Energy 160/160 System Corruption 0% Temperature Cool (0) Movement Walking (120) Location -8/Storage Parts ------- > --- POWER (1) -------- Light Nuclear Core > --- PROPULSION (4) --- Carbon-fiber Leg Improved Carbon-fiber Leg Improved Carbon-fiber Leg Improved Carbon-fiber Leg > --- UTILITY (3) ------ Improved Heat Sink Medium Storage Unit Advanced Targeting Computer > --- WEAPON (3) ------- Katana Katana Axe > --- INVENTORY (10) --- Light Deuterium Engine Titanium Leg Light Armor Plating Field Laser Heavy Particle Cannon Light Assault Rifle Mini Grenade Launcher Peak State ------------ > --- POWER ------------ Light Nuclear Core > --- PROPULSION ------- Improved Carbon-fiber Leg Improved Carbon-fiber Leg Improved Carbon-fiber Leg Improved Carbon-fiber Leg > --- UTILITY ---------- Improved Heat Sink Medium Storage Unit Advanced Targeting Computer > --- WEAPON ----------- Lightning Gun Heavy Laser Assault Cannon > --- INVENTORY -------- Light Deuterium Engine Improved Aluminum Leg Light Armor Plating Field Laser Heavy Particle Cannon Light Assault Rifle Mini Grenade Launcher Katana Katana Axe [Rating: 39] Favorites ----------- Power Light Nuclear Core Engine Ion Engine Power Core Light Nuclear Core Propulsion Improved Carbon-fiber Leg Treads Light Treads Leg Improved Carbon-fiber Leg Utility Improved Heat Sink Device Improved Heat Sink Storage Medium Storage Unit Processor Advanced Targeting Computer Protection Hardened Light Armor Plating Weapon Particle Gun Energy Gun Particle Gun Ballistic Gun Light Assault Rifle Ballistic Cannon Assault Cannon Launcher Rocket Launcher Slashing Weapon Katana Build | -11 -10 -9 -8 -8 ------- Run | Jun Mat Mat Mat Sto Slots Evolved 4 | . . 2 2 . Power . | . . . . . Propulsion 2 | . . 1 1 . Utility 1 | . . . 1 . Weapon 1 | . . 1 . . Parts Attached 68 | 6 17 25 20 . Power 7 | 1 2 2 2 . Engine 5 | 1 2 1 1 . Core 2 | . . 1 1 . Reactor . | . . . . . Propulsion 24 | 2 3 13 6 . Treads 2 | . . 2 . . Leg 22 | 2 3 11 6 . Wheel . | . . . . . Hover . | . . . . . Flight . | . . . . . Utility 9 | 1 4 1 3 . Device 5 | . 2 1 2 . Storage 2 | 1 1 . . . Processor 1 | . . . 1 . Hackware . | . . . . . Protection 1 | . 1 . . . Artifact . | . . . . . Weapon 28 | 2 8 9 9 . Energy Gun 18 | 2 5 8 3 . Energy Cannon . | . . . . . Ballistic Gun 4 | . 3 . 1 . Ballistic Cannon 1 | . . . 1 . Launcher 2 | . . 1 1 . Special Weapon . | . . . . . Impact Weapon . | . . . . . Slashing Weapon 3 | . . . 3 . Piercing Weapon . | . . . . . Special Melee Weapon . | . . . . . Unidentified Prototypes 1 | . . 1 . . Parts Lost 18 | . 1 15 2 . Power 3 | . 1 2 . . Propulsion 5 | . . 4 1 . Utility 2 | . . 2 . . Weapon 8 | . . 7 1 . Highest Loss Streak 6 | . 1 6 1 . To Critical Strikes . | . . . . . Average Slot Usage (%) 95 | . 92 94 97 100 Engine 6 | . 10 8 3 . Core 2 | . . 1 5 9 Leg 31 | . 27 31 34 36 Device 10 | . 9 10 11 9 Storage 11 | . 14 11 9 9 Processor 2 | . . . 6 9 Energy Gun 21 | . 24 28 14 . Ballistic Gun 1 | . 2 . . . Slashing Weapon 4 | . . . 10 27 Naked Turns . | . . . . . Heaviest Build 31 | 14 22 26 31 23 Greatest Support 72 | 20 20 40 72 69 Greatest Overweight (x) 2 | . 2 2 . . Average Overweight (x) . | . . . . . Largest Inventory Capacity 10 | 8 10 10 10 10 Average Capacity 9 | 7 8 10 10 10 Most Carried 10 | 5 8 10 10 7 Average Carried 7 | 2 7 7 8 7 Final Capacity 10 | 8 10 10 10 10 Final Carried 9 | 5 5 9 7 7 Class Distribution -------------------- 54% | Mutant 25% | Gunner 12% | Tank 7% | Scavenger-Gunner Dominant Class ---------------- Mutant | -10/Materials Gunner | -9/Materials Mutant | -8/Materials Mutant | -8/Storage Resources | -11 -10 -9 -8 -8 ----------- Run | Jun Mat Mat Mat Sto Matter Collected 1065 | 211 221 355 278 . Remotely . | . . . . . Salvage Created 2200 | . 413 979 808 . Parts 137 | . 26 62 49 . Haulers Intercepted 4 | . 2 . 2 . Recyclers Shooed 2 | . . 1 1 . Parts Field Recycled . | . . . . . Retrieved Matter . | . . . . . Parts Self-Destructed . | . . . . . Prevented . | . . . . . Kills | -11 -10 -9 -8 -8 ------- Run | Jun Mat Mat Mat Sto Combat Hostiles Destroyed 57 | . 11 25 21 . Melee 7 | . . . 7 . Guns 32 | . 7 17 8 . Cannons 1 | . . . 1 . AOE 17 | . 4 8 5 . Classes Destroyed 8 | . 4 4 . . Worker 3 | . . 2 1 . Builder 3 | . 1 2 . . Hauler 4 | . 2 . 2 . Recycler 3 | . . 1 2 . Operator 1 | . . 1 . . Swarmer 23 | . 6 4 13 . Grunt 23 | . 5 15 3 . Sentry 11 | . . 6 5 . Best Kill Streak 10 | . 5 10 7 . Combat Bots Only 6 | . 5 6 6 . Max Kills in Single Turn 6 | . 4 3 6 . Gunslinging . | . . . . . Exploded 5 | . 4 3 5 . Melee 1 | . . . 1 . Uniques/NPCs Destroyed . | . . . . . Combat | -11 -10 -9 -8 -8 -------- Run | Jun Mat Mat Mat Sto Damage Taken 2442 | . 395 1112 935 . Core 355 | . 59 152 144 . Absorbed by Shields . | . . . . . Core Remaining (%) 79 | 100 76 62 . . Volleys Fired 98 | . 24 48 26 . Largest 3 | . 2 3 3 . Hottest 195 | . 130 170 195 . Shots Fired 230 | . 48 117 65 . Gun 208 | . 48 102 58 . Cannon 4 | . . . 4 . Launcher 18 | . . 15 3 . Special . | . . . . . Kinetic 9 | . 2 . 7 . Thermal 168 | . 38 79 51 . Explosive 18 | . . 15 3 . Electromagnetic 35 | . 8 23 4 . Robot Hit Streak 12 | . 7 12 7 . Robot Miss Streak 6 | . 3 6 4 . Penetration Max . | . . . . . Secondary Targets 2 | . . . 2 . Max Gunslinging Chain 1 | . . . 1 . Shots Hit Robots 159 | . 28 79 52 . Core Hits 130 | . 18 81 31 . Critical Kills . | . . . . . Critical Parts Destroyed . | . . . . . Critical Strikes 8 | . 1 3 4 . Burn 2 | . 1 1 . . Corrupt 2 | . . 2 . . Sever 4 | . . . 4 . Melee Attacks 27 | . . . 27 . Impact . | . . . . . Slashing 27 | . . . 27 . Piercing . | . . . . . Sneak Attacks . | . . . . . Combat Hostiles . | . . . . . Follow-up Attacks 3 | . . . 3 . Damage Inflicted 4218 | . 577 2032 1609 . Guns 2063 | . 430 1043 590 . Cannons 74 | . . . 74 . Explosions 1424 | . 144 989 291 . Melee 654 | . . . 654 . Ramming 3 | . 3 . . . Kinetic 84 | . . . 84 . Thermal 1960 | . 522 892 546 . Explosive 1084 | . . 793 291 . Electromagnetic 433 | . 52 347 34 . Impact . | . . . . . Slashing 654 | . . . 654 . Piercing . | . . . . . Highest Corruption 1 | . . 1 . . Average Corruption 1 | . . 1 . . Corruption Purged . | . . . . . Corruption Blocked . | . . . . . Overload Shots . | . . . . . Overflow Damage 71 | . . 44 27 . Projectiles 8 | . . . 8 . Explosions 44 | . . 44 . . Melee 19 | . . . 19 . Knockbacks . | . . . . . Impact . | . . . . . Kinetic . | . . . . . Secondary . | . . . . . Self-Inflicted Damage 202 | . 52 110 40 . Shots 8 | . 3 4 1 . Rammed . | . . . . . Targets Rammed 1 | . 1 . . . Kicked 1 | . 1 . . . Crushed . | . . . . . Highest Temperature 445 | . 445 215 178 . Average Temperature 89 | . 150 60 63 . Received Heat Transfer 861 | . 135 429 297 . Effects 4 | . 4 . . . Shutdowns 1 | . 1 . . . Interference 2 | . 2 . . . Damage (minor) 1 | . 1 . . . Siege Activations . | . . . . . Robots Corrupted . | . . . . . Combat Hostiles . | . . . . . Parts Fried . | . . . . . Impact Corruptions 1 | . . . 1 . Robots Melted . | . . . . . Combat Hostiles . | . . . . . Parts Melted 5 | . 1 2 2 . Heat Transferred 3948 | . 1199 1602 1147 . Parts Sabotaged . | . . . . . Parts Stolen . | . . . . . Parts Stripped . | . . . . . Power Chain Reactions 4 | . 2 2 . . Missiles Intercepted . | . . . . . Alert | -11 -10 -9 -8 -8 ------- Run | Jun Mat Mat Mat Sto Peak Influence 692 | . 189 692 554 234 Initial 234 | . . 21 224 234 Average 258 | . 87 371 323 234 Maximum Alert Level 2 | . . 2 2 1 Low Security (%) 48 | 100 100 33 19 . Level 1 20 | . . 15 36 100 Level 2 31 | . . 51 43 . Level 3 . | . . . . . Level 4 . | . . . . . Level 5 . | . . . . . High Security . | . . . . . Max Security . | . . . . . Squads Dispatched 10 | . 2 4 4 . Investigation 3 | . 1 1 1 . Extermination . | . . . . . Reinforcement 5 | . 1 2 2 . Assault 1 | . . 1 . . Garrison 1 | . . . 1 . Intercept . | . . . . . Searches Triggered . | . . . . . Construction Impeded . | . . . . . Haulers Reinforced . | . . . . . Active Scanning Responses . | . . . . . Cargo Convoy Interrupts . | . . . . . Stealth | -11 -10 -9 -8 -8 --------- Run | Jun Mat Mat Mat Sto Distress Signals 6 | . . 5 1 . Communications Jammed . | . . . . . Distress Signals . | . . . . . Times Spotted 99 | . 24 43 31 1 Peak Tracking Total 9 | . 4 7 9 2 Tactical Retreats 6 | . 2 1 3 . Traps | -11 -10 -9 -8 -8 ------- Run | Jun Mat Mat Mat Sto Traps Triggered 6 | . 4 1 1 . Indirectly 1 | . . 1 . . Trap Hack Attempts . | . . . . . Triggered . | . . . . . Disarmed . | . . . . . Reprogrammed . | . . . . . Reused . | . . . . . Traps Extracted . | . . . . . Installed . | . . . . . Triggered . | . . . . . Machines | -11 -10 -9 -8 -8 ---------- Run | Jun Mat Mat Mat Sto Machines Disabled 11 | . 1 7 3 . Max in Single Turn 4 | . 1 4 3 . Machines Repaired . | . . . . . Machines Sabotaged . | . . . . . Overloaded Fab Kills . | . . . . . Hacking | -11 -10 -9 -8 -8 --------- Run | Jun Mat Mat Mat Sto Machines Accessed . | . . . . . Terminals . | . . . . . Fabricators . | . . . . . Repair Stations . | . . . . . Recycling Units . | . . . . . Scanalyzers . | . . . . . Garrison Access . | . . . . . Total Hacks . | . . . . . Successful . | . . . . . Failed . | . . . . . Catastrophic . | . . . . . Database Lockouts . | . . . . . Manual . | . . . . . Terminals . | . . . . . Fabricators . | . . . . . Repair Stations . | . . . . . Recycling Units . | . . . . . Scanalyzers . | . . . . . Garrison Access . | . . . . . Terminal Hacks . | . . . . . Fabricator Hacks . | . . . . . Repair Station Hacks . | . . . . . Recycling Unit Hacks . | . . . . . Scanalyzer . | . . . . . Garrison Access Hacks . | . . . . . Unauthorized Hacks . | . . . . . Terminals . | . . . . . Fabricators . | . . . . . Repair Stations . | . . . . . Recycling Units . | . . . . . Scanalyzers . | . . . . . Garrison Access . | . . . . . Data Cores Recovered 1 | . . 1 . . Used . | . . . . . Hacking Detections . | . . . . . Full Trace Events . | . . . . . Feedback Events . | . . . . . Feedback Blocked . | . . . . . Robot Schematics Acquired . | . . . . . Robots Built . | . . . . . Authchips . | . . . . . Time . | . . . . . Total Robot Build Rating . | . . . . . Part Schematics Acquired . | . . . . . Parts Built . | . . . . . Authchips . | . . . . . Time . | . . . . . Total Part Build Rating . | . . . . . Parts Repaired . | . . . . . Time . | . . . . . Parts Recycled . | . . . . . Recycled Matter . | . . . . . Retrieved Matter . | . . . . . Retrieved Components . | . . . . . Parts Scanalyzed . | . . . . . Part Schematics Acquired . | . . . . . Parts Damaged . | . . . . . Bothacking | -11 -10 -9 -8 -8 ------------ Run | Jun Mat Mat Mat Sto Used RIF Installer . | . . . . . Robots Hacked . | . . . . . Non-combat . | . . . . . Combat . | . . . . . Robot Hacks Applied . | . . . . . Relay Couplers Released . | . . . . . Fabnet Peak Effective % . | . . . . . Robots Rewired . | . . . . . Allies Hacked . | . . . . . Hacks Repelled . | . . . . . Allies | -11 -10 -9 -8 -8 -------- Run | Jun Mat Mat Mat Sto Total Allies . | . . . . . Largest Group . | . . . . . Highest-Rated Group . | . . . . . Highest-Rated Ally . | . . . . . Total Orders . | . . . . . Ally Attacks . | . . . . . Total Damage . | . . . . . Kills . | . . . . . Allies Corrupted . | . . . . . Allies Melted . | . . . . . Intel | -11 -10 -9 -8 -8 ------- Run | Jun Mat Mat Mat Sto Robot Analysis Total . | . . . . . Derelict Logs Recovered . | . . . . . Drone Launches . | . . . . . Drone Recoveries . | . . . . . Exploration | -11 -10 -9 -8 -8 ------------- Run | Jun Mat Mat Mat Sto Turns Passed 3505 | 87 1016 912 1473 17 Spaces Moved 2226 | 65 643 542 969 7 Core 7 | 6 1 . . . Treads 4 | . . 4 . . Legs 2215 | 59 642 538 969 7 Wheels . | . . . . . Hover . | . . . . . Flight . | . . . . . Fastest Speed 50 | 50 120 120 120 120 Average Speed 122 | 113 127 122 120 120 Slowest Speed 260 | 120 190 260 120 120 Overloaded Moves . | . . . . . Propulsion Burnouts . | . . . . . Robots Hopped . | . . . . . Cave-ins Triggered . | . . . . . Exploration Rate (%) 45 | 5 95 59 65 3 Regions Visited 4 Branch Regions 1 Pre-discovered Areas . | . . . . . Known Exits Taken . | . . . . . Unknown Exits Taken 4 | 1 1 1 1 . Scrap Searched . | . . . . . Spaces Dug 1 | . . . 1 . Terrain Destroyed 136 | . 3 91 42 . Melee 1 | . . . 1 . Projectile . | . . . . . AOE 135 | . 3 91 41 . Terrain Rammed . | . . . . . Walls Destroyed . | . . . . . Machines Disabled . | . . . . . Actions | -11 -10 -9 -8 -8 --------- Run | Jun Mat Mat Mat Sto Total 2751 | 75 787 682 1192 15 Wait 298 | . 93 58 139 8 Move 2222 | 64 642 541 968 7 Hop . | . . . . . Pick Up 19 | 5 1 7 6 . Fast Attach 31 | 6 11 9 5 . Attach 13 | . 2 6 5 . Detach 3 | . 3 . . . Swap 25 | . 4 11 10 . Drop 21 | . 6 2 13 . Fire 98 | . 24 48 26 . Melee 20 | . . . 20 . Ram . | . . . . . Kick 1 | . 1 . . . Crush . | . . . . . Escape Stasis . | . . . . . Rewire . | . . . . . Trap . | . . . . . Miscellaneous . | . . . . . Route ------- -11/Junkyard -10/Materials (discovered 5 exits: [*Mat x3] / [*Min x2]) -9/Materials (discovered 3 exits: [*Mat] / [*Min x2]) -8/Materials (discovered 2 exits: [*Fac] / [*Sto]) -8/Storage History --------- Turn | Location | Event 3 | -11/Junkyard | Discovered new exit (range 15) 88 | -11/Junkyard | Entered Materials 136 | -10/Materials | Discovered new exit (range 9) 283 | -10/Materials | Discovered new exit (range 6) 327 | -10/Materials | Build established: Mutant 473 | -10/Materials | Discovered new exit (range 14) 806 | -10/Materials | Discovered new exit (range 11) 1070 | -10/Materials | Discovered new exit (range 16) 1104 | -10/Materials | Entered another Materials area 1104 | -9/Materials | Evolved 2 slots: Propulsion x1, Weapon x1 1191 | -9/Materials | Discovered new exit (range 5) 1396 | -9/Materials | Build established: Gunner 1617 | -9/Materials | Lost 3 parts (2n1w) 1692 | -9/Materials | Discovered new exit (range 13) 1904 | -9/Materials | First assault squad dispatched 1970 | -9/Materials | Lost 6 parts (1p1u4w) 1979 | -9/Materials | Discovered new exit (range 16) 2016 | -9/Materials | Entered another Materials area 2016 | -8/Materials | Evolved 2 slots: Propulsion x1, Utility x1 2035 | -8/Materials | Lost 5 parts (2n1u2w) 2160 | -8/Materials | Garrison activated, responded to threat 2330 | -8/Materials | Discovered new exit (range 16) 2381 | -8/Materials | Build established: Tank 2491 | -8/Materials | Discovered new exit (range 4) 2793 | -8/Materials | Build established: Gunner 3216 | -8/Materials | Build established: Mutant 3489 | -8/Materials | Entered Storage 3506 | -8/Storage | Self-destructed Last Messages --------------- 03138_ ALERT: Alarm triggered, dispatching investigation squad. 03151_ Y-45 Defender destroyed. 03163_ G-47 Trooper destroyed. 03255_ R-06 Scavenger collects Lgt. Nuclear Core. 03285_ Critical hit (Burn: +37). 03289_ Katana follow-up attack on Y-45 Defender. 03292_ Y-45 Defender Lgt. Treads severed. 03295_ Y-45 Defender Imp. Ion Engine severed. 03300_ Y-45 Defender Hvy. Assault Rifle severed. 03305_ Critical hit (Burn: +37). 03306_ Destroyed Lgt. Armor Plating. 03309_ Y-45 Defender destroyed. 03352_ Imp. Carbon-fiber Leg destroyed. 03358_ Katana follow-up attack on Y-45 Defender. 03358_ Y-45 Defender destroyed. 03363_ Acquired 10 matter. 03372_ R-06 Scavenger inserts Lgt. Armor Plating into recycling unit. 03373_ Recycling unit begins recycling process. LOCATION=UNKNOWN GOAL=ESCAPE Map ----- +----------------------------------------------------+ | ??????????????????????????????????? | | ??????????????????????????????????? | | ??????????????????????????????????? | | ??????????????????????????????????? | | ??????????????????????????????????? | | ??????????????????????????????????? | | ??????????????????????????????????? | | ??????????????????????????????????? | | ??????????????????????????????????? | | ??????????????????????????????????? | | ??????????????????????????????????? | | ??????????????????????????????????? | | ??????????????????????????????????? | | ??????????????????????????????????? | | ??????????????????????????????????? | | ??????????????????????????????????? | | ??????????????????????????????????? | | ??????????????????????????????????? | | ??????????????????????????????????? | | ??????????????????????????????????? | | ??????????????????????????????????? | | ??????????###################?????? | | ????????? #?????? | | ????????? ###???? | | ????????? ""#???? | | ????????????????#+#######@ T"#???? | | ????????????????????????# ""#???? | | ????????????????????????# ###???? | | ????????????????????????# #?????? | | ????????????????????????# #?????? | | ????????????????????????# #?????? | | ????????????????????????# #?????? | | ????????????????????????#####?????? | | ??????????????????????????????????? | | ??????????????????????????????????? | | ??????????????????????????????????? | | ??????????????????????????????????? | | ??????????????????????????????????? | | ??????????????????????????????????? | | ??????????????????????????????????? | | ??????????????????????????????????? | | ??????????????????????????????????? | | ??????????????????????????????????? | | ??????????????????????????????????? | | ??????????????????????????????????? | | ??????????????????????????????????? | | ??????????????????????????????????? | | | | | | | +----------------------------------------------------+ Best States ------------- Heat Dissipation 45 Energy Generation 14 Energy Capacity 250 Matter Stores 300 Matter Capacity 300 Sight Range 16 Terrain Scan Density 10 Armor Coverage 150 Evasion (%) 55 Targeting Accuracy 8 Recoil Reduction 2 Item Schematics ----------------- None Robot Schematics ------------------ None Fabricated ------------ Nothing Alien Tech Used ----------------- None Achievements -------------- None Challenges ------------ None Game ------ Seed ChipCorePropulsion Manual? 0 Play Time 00:54:00 Cumulative 87.5 hours Start 2023.03.31 @ 16:55:42 End 2023.04.24 @ 11:37:09 Sessions 7 Manual Loads 0 Difficulty Rogue Special Mode None Game No. 67 Rogue 67 Adventurer 0 Explorer 0 Win Type - Total 0 Types 0/0/0/0/0/0/0/0/0 Lore% 48 Gallery% 46 Achievement% 37 Wizard Run 0 Options --------- ASCII 0 Keyboard 1 Movement Numpad Keybinds 0 Fullscreen 1 Font 18/Terminus Map View 76x50 Tactical HUD 1 Map Filters NONE Filters NONE Steam 1 RUN: a14407c9-6825-4cf2-a04f-93e227658221